fUST/lending_fUST_20240501
["ID","MTS","AMOUNT","RATE_DAILY","PERIOD"]
[324993404,1714499455239,-500.0,0.0003452,7]
[324993405,1714499455249,-500.0,0.0003452,7]
[324993406,1714499455258,-500.0,0.0003452,7]
[324993407,1714499455267,-500.0,0.0003452,7]
[324993408,1714499455276,-500.0,0.0003452,7]
[324993409,1714499455286,-500.0,0.0003452,7]
[324993410,1714499455295,-1092.87,0.0003452,7]
[324993411,1714499455304,-347.97535903,0.0003452,7]
[324993412,1714499455312,-500.0,0.0003452,7]
[324993413,1714499455321,-500.0,0.0003452,7]
[324993414,1714499455331,-500.0,0.0003452,7]
[324993415,1714499455340,-500.0,0.0003452,7]
[324993416,1714499455349,-500.0,0.0003452,7]
[324993417,1714499455359,-500.0,0.0003452,7]
[324993418,1714499455368,-270.27285849,0.0003452,7]
[324993419,1714499455377,-560.28,0.0003452,7]
[324993420,1714499455386,-2394.56,0.0003452,7]
[324993421,1714499455396,-500.0,0.0003452,7]
[324993422,1714499455406,-794.19,0.0003452,7]
[324993423,1714499455415,-659.6,0.0003452,7]
[324993424,1714499455423,-500.0,0.0003452,7]
[324993425,1714499455432,-577.7,0.0003452,7]
[324993426,1714499455442,-799.86,0.0003452,7]
[324993427,1714499455451,-916.77,0.0003452,7]
[324993428,1714499455460,-598.01,0.0003452,7]
[324993429,1714499455469,-500.0,0.0003452,7]
[324993430,1714499455479,-500.0,0.0003452,7]
[324993431,1714499455492,-500.0,0.0003452,7]
[324993432,1714499455501,-609.48,0.0003452,7]
[324993433,1714499455511,-224.96550399,0.0003452,7]
[324993434,1714499455519,-607.06,0.0003452,7]
[324993435,1714499455530,-500.0,0.0003452,7]
[324993436,1714499455539,-152.57367532,0.0003452,7]
[324993437,1714499455548,-2344.77,0.0003452,7]
[324993438,1714499455558,-384.03901712,0.0003452,7]
[324993439,1714499455568,-500.0,0.0003452,7]
[324993440,1714499455578,-500.0,0.0003452,7]
[324993441,1714499455587,-500.0,0.0003452,7]
[324993442,1714499455596,-506.75,0.0003452,7]
[324993443,1714499455605,-561.26,0.0003452,7]
[324993444,1714499455615,-500.0,0.0003452,7]
[324993445,1714499455623,-500.0,0.0003452,7]
[324993446,1714499455632,-604.18,0.0003452,7]
[324993447,1714499455642,-632.74,0.0003452,7]
[324993448,1714499455652,-1322.24,0.0003452,7]
[324993449,1714499455662,-500.0,0.0003452,7]
[324993450,1714499455671,-500.0,0.0003452,7]
[324993451,1714499455681,-500.0,0.0003452,7]
[324993452,1714499455690,-500.0,0.0003452,7]
[324993453,1714499455699,-500.0,0.0003452,7]
[324993454,1714499455708,-750.76,0.0003452,7]
[324993455,1714499455717,-500.0,0.0003452,7]
[324993456,1714499455726,-1438.93,0.0003452,7]
[324993457,1714499455736,-500.0,0.0003452,7]
[324993458,1714499455746,-500.0,0.0003452,7]
[324993459,1714499455755,-500.0,0.0003452,7]
[324993460,1714499455764,-180.25148183,0.0003452,7]
[324993461,1714499455776,-500.0,0.0003452,7]
[324993462,1714499455785,-540.78,0.0003452,7]
[324993463,1714499455796,-338.063927,0.00034521,2]
[324993464,1714499455806,-268.154419,0.00034521,2]
[324993465,1714499455815,-200.0,0.00034546,120]
[324993466,1714499455824,-165.309895,0.00034621,2]
[324993467,1714499455833,-200.0,0.00034683,120]
[324993468,1714499455844,-150.0,0.00034778,2]
[324993469,1714499455853,-579.96,0.00034794,7]
[324993470,1714499455864,-500.0,0.00034794,7]
[324993471,1714499455875,-500.0,0.00034794,7]
[324993472,1714499455886,-500.0,0.00034794,7]
[324993473,1714499455896,-287.39887125,0.00034794,7]
[324993474,1714499455905,-875.88,0.00034794,7]
[324993475,1714499455915,-626.92,0.00034794,7]
[324993476,1714499455927,-500.0,0.00034794,7]
[324993477,1714499455936,-559.69,0.00034794,7]
[324993478,1714499455945,-521.91,0.00034794,7]
[324993479,1714499455956,-697.52,0.00034794,7]
[324993480,1714499455965,-500.0,0.00034794,7]
[324993481,1714499455974,-500.0,0.00034794,7]
[324993482,1714499455984,-500.0,0.00034794,7]
[324993483,1714499455994,-500.0,0.00034794,7]
[324993484,1714499456003,-500.0,0.00034794,7]
[324993485,1714499456013,-500.0,0.00034794,7]
[324993486,1714499456026,-500.0,0.00034794,7]
[324993487,1714499456036,-500.0,0.00034794,7]
[324993488,1714499456045,-500.0,0.00034794,7]
[324993489,1714499456170,-585.25,0.00034794,7]
[324993490,1714499456180,-500.0,0.00034794,7]
[324993491,1714499456190,-500.0,0.00034794,7]
[324993492,1714499456199,-578.4,0.00034794,7]
[324993493,1714499456209,-234.59264023,0.00034794,7]
[324993494,1714499456218,-532.76,0.00034794,7]
[324993495,1714499456228,-500.0,0.00034794,7]
[324993496,1714499456239,-500.0,0.00034794,7]
[324993497,1714499456248,-500.0,0.00034794,7]
[324993498,1714499456258,-500.0,0.00034794,7]
[324993499,1714499456268,-709.38,0.00034794,7]
[324993500,1714499456277,-500.0,0.00034794,7]
[324993501,1714499456287,-500.0,0.00034794,7]
[324993502,1714499456296,-500.0,0.00034794,7]
[324993503,1714499456306,-591.7229864,0.00034794,7]
[324993504,1714499456316,-500.0,0.00034794,7]
[324993505,1714499456326,-500.0,0.00034794,7]
[324993506,1714499456335,-500.0,0.00034794,7]
[324993507,1714499456345,-500.0,0.00034794,7]
[324993508,1714499456354,-1092.87,0.00034794,7]
[324993509,1714499456364,-500.0,0.00034794,7]
[324993510,1714499456373,-500.0,0.00034794,7]
[324993511,1714499456383,-500.0,0.00034794,7]
[324993512,1714499456392,-500.0,0.00034794,7]
[324993513,1714499456402,-500.0,0.00034794,7]
[324993514,1714499456411,-500.0,0.00034794,7]
[324993515,1714499456420,-560.28,0.00034794,7]
[324993516,1714499456429,-2394.56,0.00034794,7]
[324993517,1714499456439,-500.0,0.00034794,7]
[324993518,1714499456448,-794.19,0.00034794,7]
[324993519,1714499456457,-659.6,0.00034794,7]
[324993520,1714499456466,-500.0,0.00034794,7]
[324993521,1714499456476,-577.7,0.00034794,7]
[324993522,1714499456490,-799.86,0.00034794,7]
[324993523,1714499456499,-916.77,0.00034794,7]
[324993524,1714499456508,-598.01,0.00034794,7]
[324993525,1714499456518,-500.0,0.00034794,7]
[324993526,1714499456530,-500.0,0.00034794,7]
[324993527,1714499456540,-500.0,0.00034794,7]
[324993528,1714499456549,-609.48,0.00034794,7]
[324993529,1714499456558,-607.06,0.00034794,7]
[324993530,1714499456569,-500.0,0.00034794,7]
[324993531,1714499456579,-2344.77,0.00034794,7]
[324993532,1714499456588,-500.0,0.00034794,7]
[324993533,1714499456597,-500.0,0.00034794,7]
[324993534,1714499456607,-500.0,0.00034794,7]
[324993535,1714499456616,-506.75,0.00034794,7]
[324993536,1714499456626,-561.26,0.00034794,7]
[324993537,1714499456636,-500.0,0.00034794,7]
[324993538,1714499456646,-500.0,0.00034794,7]
[324993539,1714499456657,-604.18,0.00034794,7]
[324993540,1714499456667,-632.74,0.00034794,7]
[324993541,1714499456677,-1322.24,0.00034794,7]
[324993542,1714499456686,-500.0,0.00034794,7]
[324993543,1714499456696,-500.0,0.00034794,7]
[324993544,1714499456705,-500.0,0.00034794,7]
[324993545,1714499456715,-500.0,0.00034794,7]
[324993546,1714499456724,-500.0,0.00034794,7]
[324993547,1714499456733,-750.76,0.00034794,7]
[324993548,1714499456742,-500.0,0.00034794,7]
[324993549,1714499456751,-1438.93,0.00034794,7]
[324993550,1714499456761,-500.0,0.00034794,7]
[324993551,1714499456770,-500.0,0.00034794,7]
[324993552,1714499456780,-153.41223651,0.00034794,7]
[324993553,1714499456789,-500.0,0.00034794,7]
[324993554,1714499456799,-540.78,0.00034794,7]
[324993555,1714499456809,-1000.0,0.000348,3]
[324993556,1714499456818,-1000.0,0.000348,3]
[324993557,1714499456828,-1000.0,0.000348,3]
[324993558,1714499456837,-1000.0,0.000348,3]
[324993559,1714499456847,-158.697498,0.0003483,2]
[324993560,1714499456856,-187.928216,0.0003483,2]
[324993561,1714499456866,-187.351213,0.0003483,2]
[324993562,1714499456876,-26908.90743252,0.000349,2]
[324993563,1714499456885,-214.63686045,0.00035,4]
[324993564,1714499456895,-854.20368441,0.00035,2]
[324993565,1714499456904,-874.73567011,0.00035,30]
[324993566,1714499456914,-5916.15000564,0.00035,4]
[324993567,1714499456923,-447.0489704,0.00035,10]
[324993568,1714499456933,-849.10028097,0.00035,30]
[324993569,1714499456942,-474.82426074,0.00035,30]
[324993570,1714499456951,-5112.43235119,0.00035068,60]
[324993571,1714499456961,-309.50479234,0.00035068,4]
[324993572,1714499456971,-579.96,0.00035068,7]
[324993573,1714499456980,-500.0,0.00035068,7]
[324993574,1714499456989,-500.0,0.00035068,7]
[324993575,1714499456999,-500.0,0.00035068,7]
[324993576,1714499457008,-875.88,0.00035068,7]
[324993577,1714499457019,-626.92,0.00035068,7]
[324993578,1714499457029,-500.0,0.00035068,7]
[324993579,1714499457039,-559.69,0.00035068,7]
[324993580,1714499457048,-521.91,0.00035068,7]
[324993581,1714499457057,-697.52,0.00035068,7]
[324993582,1714499457066,-500.0,0.00035068,7]
[324993583,1714499457076,-266.31107864,0.00035068,7]
[324993643,1714500081158,700.60939635,9.999e-05,2]
[324993667,1714500194696,550.09434991,9.999e-05,2]
[324993668,1714500229579,212.29957186,9.999e-05,2]
[324993671,1714500334120,-166.666666,0.00013997,2]
[324993672,1714500334143,-6938.27266148,0.00014992,2]
[324993673,1714500334164,-59218.78804834,0.00014992,2]
[324993674,1714500334184,-212.15149318,0.00014993,2]
[324993675,1714500334203,-20197.66755439,0.00014993,2]
[324993676,1714500334221,-375.20222406,0.00014994,2]
[324993677,1714500334241,-549.71527051,0.00014995,2]
[324993678,1714500334261,-208.08643607,0.00014996,2]
[324993679,1714500334280,-154.79876161,0.00014997,2]
[324993680,1714500334298,-2101.40475036,0.00015,2]
[324993681,1714500334317,-939.47409396,0.00015,2]
[324993682,1714500334337,-247.79907711,0.00015999,2]
[324993683,1714500334357,-9378.0153671,0.00016,2]
[324993684,1714500334382,-779.17120746,0.00018279,2]
[324993685,1714500334401,-24900.0,0.00018281,2]
[324993686,1714500334421,-229.34713328,0.00019077,2]
[324993687,1714500334442,-308.72716186,0.00019128,2]
[324993688,1714500334462,-209.384491,0.00019132,2]
[324993689,1714500334483,-186.25450795,0.00019174,2]
[324993690,1714500334504,-574.45001192,0.00019175,2]
[324993691,1714500334525,-160.57566,0.00019178,2]
[324993692,1714500334547,-329.99389325,0.0002,2]
[324993693,1714500334577,-5460.88699735,0.0002,2]
[324993694,1714500334602,-9703.38203181,0.0002,2]
[324993695,1714500346094,-2055.00917272,0.00019999,2]
[324993696,1714500346115,-57722.81656197,0.0002,2]
[324993697,1714500346136,-241.71320654,0.0002,2]
[324993698,1714500346155,-10598.56422738,0.0002,2]
[324993699,1714500346175,-3051.21388193,0.00020175,2]
[324993700,1714500346195,-806.1876153,0.00020911,2]
[324993701,1714500346214,-166.666666,0.00021918,2]
[324993702,1714500346233,-229.34713321,0.00021982,2]
[324993703,1714500346253,-159.21978257,0.00022,2]
[324993704,1714500346272,-2000.0,0.00022,2]
[324993705,1714500346291,-166.666666,0.00022431,2]
[324993706,1714500346310,-353.529099,0.00022466,2]
[324993707,1714500346328,-712.225103,0.00022466,2]
[324993708,1714500346347,-166.666666,0.00022944,2]
[324993709,1714500346365,-714.17223552,0.00023,2]
[324993710,1714500346385,-166.666666,0.00023456,2]
[324993711,1714500346405,-166.666666,0.00023969,2]
[324993712,1714500346424,-989.91268434,0.00024,2]
[324993713,1714500346442,-166.666666,0.00024482,2]
[324993714,1714500346460,-500.0,0.00024657,2]
[324993715,1714500346479,-229.34713321,0.00024887,2]
[324993716,1714500346498,-981.37861207,0.00026513,2]
[324993717,1714500346517,-18459.86400482,0.00026947,2]
[324993718,1714500346535,-229.34713321,0.00027792,3]
[324993719,1714500346555,-220.93587945,0.00028,2]
[324993720,1714500346576,-353.529099,0.00028493,2]
[324993721,1714500346595,-712.225103,0.00028493,2]
[324993722,1714500346614,-209.384491,0.00028697,2]
[324993723,1714500346635,-379.2,0.00028704,5]
[324993724,1714500346664,-379.2,0.00029677,5]
[324993725,1714500346688,-1000.0,0.00029999,30]
[324993726,1714500346707,-1000.0,0.00029999,30]
[324993727,1714500346728,-1751.631749,0.0003,2]
[324993728,1714500346748,-3722.55253328,0.0003,4]
[324993729,1714500346769,-928.69749977,0.00030448,4]
[324993730,1714500346794,-379.2,0.00030649,7]
[324993731,1714500346816,-229.34713321,0.00030696,5]
[324993732,1714500346838,-9836.95,0.00031221,3]
[324993733,1714500346862,-312.85134403,0.00031231,4]
[324993734,1714500346883,-193.75390213,0.00031231,4]
[324993735,1714500346904,-196.09497546,0.00031232,4]
[324993736,1714500346923,-526.73680751,0.00031243,4]
[324993737,1714500346943,-472.51280237,0.00031244,4]
[324993738,1714500346963,-699.73587592,0.0003125,4]
[324993739,1714500346984,-150.75878594,0.00031297,2]
[324993740,1714500347006,-379.2,0.00031621,7]
[324993741,1714500347028,-500.0,0.0003178,2]
[324993742,1714500347050,-500.0,0.0003178,2]
[324993743,1714500347073,-500.0,0.0003178,2]
[324993744,1714500347093,-387.72935476,0.0003178,2]
[324993745,1714500347115,-500.0,0.0003178,2]
[324993746,1714500347137,-449.29323838,0.0003178,2]
[324993755,1714500441091,-520.52223815,0.00016499,2]
[324993756,1714500441111,-272.83575254,0.000165,2]
[324993757,1714500441131,-603.84859883,0.000185,2]
[324993758,1714500441150,-939.47409396,0.00019181,2]
[324993759,1714500441171,-160.5143205,0.00019182,2]
[324993760,1714500441191,-186.25450795,0.00019993,2]
[324993761,1714500441213,-981.37861207,0.00019993,2]
[324993762,1714500441234,-154.79876161,0.00019993,2]
[324993763,1714500441253,-212.22553252,0.00019994,2]
[324993764,1714500441272,-2101.40475036,0.00019995,2]
[324993765,1714500441292,-9378.0153671,0.00019995,2]
[324993766,1714500441311,-20197.66755439,0.00019996,2]
[324993768,1714500441330,-514.30635662,0.00019997,2]
[324993769,1714500441349,-59218.78804834,0.00019999,2]
[324993770,1714500441369,-1408.15274935,0.0002,2]
[324993771,1714500441401,-2233.19657254,0.0002,2]
[324993772,1714500441422,-5460.88699735,0.0002,2]
[324993773,1714500441443,-67426.19859378,0.0002,2]
[324993774,1714500441464,-241.71320654,0.0002,2]
[324993775,1714500441484,-989.91268434,0.00024,2]
[324993776,1714500441506,-150.0,0.00024847,2]
[324993777,1714500441527,-768.69660055,0.00028598,5]
[324993779,1714500441762,-3722.55253328,0.0003,4]
[324993780,1714500441782,-154.76784823,0.00030188,4]
[324993781,1714500441806,-10438.09,0.00031758,3]
[324993782,1714500441827,-329.70890835,0.00031767,2]
[324993783,1714500441848,-12525.71,0.00031768,3]
[324993784,1714500441868,-1891.97802376,0.00031776,4]
[324993785,1714500441892,-420.44273332,0.00031776,4]
[324993786,1714500441913,-164.01055654,0.00031776,4]
[324993787,1714500441935,-959.5404316,0.00031776,2]
[324993788,1714500441956,-184.58059869,0.00031776,4]
[324993789,1714500441977,-308.1070898,0.00031776,4]
[324993790,1714500441998,-8978.41347133,0.00031776,4]
[324993799,1714500450131,-550.09434991,0.00020913,2]
[324993800,1714500450150,-159.21978257,0.00022,2]
[324993801,1714500450170,-14.86836287,0.00031776,4]
[324993802,1714500450189,-154.89155426,0.00031776,4]
[324993803,1714500450213,-1751.631749,0.00031776,2]
[324993804,1714500450233,-1027.70801588,0.00031776,4]
[324993805,1714500450252,-1620.89516318,0.00031776,4]
[324993806,1714500450271,-474.97244981,0.00031777,4]
[324993807,1714500450290,-422.70056757,0.00031777,2]
[324993808,1714500450309,-276.79028923,0.00031777,2]
[324993809,1714500450329,-50.70676162,0.0003178,2]
[324993810,1714500450348,-227.7699957,0.0003178,2]
[324993811,1714500450368,-500.0,0.0003178,2]
[324993812,1714500450386,-500.0,0.0003178,2]
[324993813,1714500450406,-500.0,0.0003178,2]
[324993814,1714500450424,-500.0,0.0003178,2]
[324993815,1714500450443,-500.0,0.0003178,2]
[324993816,1714500450467,-500.0,0.0003178,2]
[324993817,1714500450488,-500.0,0.0003178,2]
[324993818,1714500450508,-500.0,0.0003178,2]
[324993819,1714500450527,-500.0,0.0003178,2]
[324993820,1714500450547,-500.0,0.0003178,2]
[324993821,1714500450566,-500.0,0.0003178,2]
[324993822,1714500450584,-500.0,0.0003178,2]
[324993823,1714500450604,-500.0,0.0003178,2]
[324993824,1714500450624,-500.0,0.0003178,2]
[324993825,1714500450644,-500.0,0.0003178,2]
[324993826,1714500450663,-500.0,0.0003178,2]
[324993827,1714500450683,-500.0,0.0003178,2]
[324993828,1714500450703,-500.0,0.0003178,2]
[324993829,1714500450725,-500.0,0.0003178,2]
[324993830,1714500450744,-500.0,0.0003178,2]
[324993831,1714500450765,-500.0,0.0003178,2]
[324993832,1714500450786,-500.0,0.0003178,2]
[324993833,1714500450810,-500.0,0.0003178,2]
[324993834,1714500450837,-500.0,0.0003178,2]
[324993835,1714500450857,-500.0,0.0003178,2]
[324993836,1714500450879,-258.05,0.0003178,2]
[324993837,1714500450899,-500.0,0.0003178,2]
[324993838,1714500450918,-500.0,0.0003178,2]
[324993839,1714500450937,-191.8784784,0.0003178,2]
[324993846,1714500563648,-514.30635662,0.00019997,2]
[324993847,1714500563669,-603.84859883,0.00019997,2]
[324993848,1714500563689,-9378.0153671,0.00019998,2]
[324993849,1714500563710,-2101.40475036,0.00019999,2]
[324993850,1714500563730,-364.55782172,0.0002,2]
[324993851,1714500563750,-329.99389325,0.00020909,2]
[324993852,1714500563770,-475.11677013,0.0002091,2]
[324993853,1714500563790,-471.97178715,0.0002091,2]
[324993854,1714500563817,-5460.88699735,0.00020911,2]
[324993855,1714500563838,-272.83575254,0.00020912,2]
[324993856,1714500563859,-549.71527051,0.00020912,2]
[324993857,1714500563878,-2626.30439442,0.00020912,2]
[324993858,1714500563898,-961.64578177,0.00020912,2]
[324993873,1714500633801,-455.09951319,0.00020622,2]
[324993874,1714500633810,-872.36,0.00020711,3]
[324993875,1714500633820,-577.47,0.00020711,3]
[324993876,1714500633831,-260.51204675,0.0002072,2]
[324993877,1714500633845,-955.70568899,0.0002072,2]
[324993878,1714500633854,-67426.19859378,0.0002072,2]
[324993879,1714500633863,-716.90467144,0.00020721,2]
[324993880,1714500633874,-5460.88699735,0.00020721,2]
[324993881,1714500633883,-521.0070079,0.00020721,2]
[324993882,1714500633893,-59218.78804834,0.00020721,2]
[324993883,1714500633903,-1234.58706415,0.00020722,2]
[324993884,1714500633915,-23665.41293585,0.00020722,2]
[324993885,1714500633924,-329.99389325,0.00020911,2]
[324993886,1714500633934,-9378.0153671,0.00020911,2]
[324993887,1714500633944,-1564.25196696,0.00020912,2]
[324993888,1714500633953,-154.76784823,0.00020912,2]
[324993889,1714500633963,-1709.4519652,0.00021237,2]
[324993890,1714500633973,-166.666666,0.00021918,2]
[324993891,1714500633982,-159.21978257,0.00022,2]
[324993892,1714500633992,-2000.0,0.00022,2]
[324993893,1714500634001,-1154.94,0.00022081,3]
[324993894,1714500634010,-166.666666,0.00022431,2]
[324993895,1714500634021,-166.666666,0.00022944,2]
[324993896,1714500634030,-714.17223552,0.00023,2]
[324993897,1714500634039,-620.12198001,0.00023408,2]
[324993898,1714500634048,-166.666666,0.00023456,2]
[324993899,1714500634058,-455.09951316,0.00023524,2]
[324993900,1714500634067,-166.666666,0.00023969,2]
[324993901,1714500634077,-989.91268434,0.00024,2]
[324993902,1714500634086,-166.666666,0.00024482,2]
[324993903,1714500634098,-620.006099,0.00024578,2]
[324993904,1714500634107,-154.78330338,0.00025,2]
[324993905,1714500634117,-620.00030495,0.00025807,2]
[324993906,1714500634126,-455.09951316,0.00026425,2]
[324993907,1714500634135,-8529.21181525,0.00027,2]
[324993908,1714500634144,-620.00001525,0.00027098,2]
[324993909,1714500634154,-154.81422293,0.000274,2]
[324993910,1714500634164,-220.93587945,0.00028,2]
[324993911,1714500634174,-620.00000076,0.00028453,2]
[324993912,1714500634183,-455.09951316,0.00029327,2]
[324993913,1714500634192,-999.0556959,0.00029382,2]
[324993914,1714500634201,-620.00000004,0.00029875,2]
[324993915,1714500634211,-1751.631749,0.0003,2]
[324993916,1714500634220,-187.0,0.0003,2]
[324993917,1714500634230,-154.81422293,0.0003,4]
[324993918,1714500634240,-212.54437456,0.0003,4]
[324993919,1714500634250,-188.46262606,0.0003,4]
[324993920,1714500634259,-3722.55253328,0.0003,4]
[324993921,1714500634269,-1000.0,0.000308,9]
[324993922,1714500634278,-476.28166,0.0003099,2]
[324993923,1714500634288,-476.28166,0.0003099,2]
[324993924,1714500634298,-476.28166,0.0003099,2]
[324993925,1714500634307,-476.28166,0.0003099,2]
[324993926,1714500634316,-476.28166,0.0003099,2]
[324993927,1714500634325,-476.28166,0.0003099,2]
[324993928,1714500634334,-476.28166,0.0003099,2]
[324993929,1714500634346,-1000.0,0.000313,9]
[324993930,1714500634356,-3385.25206369,0.00031778,2]
[324993931,1714500634367,-212.22553252,0.00031779,4]
[324993932,1714500634376,-296.35202337,0.00031779,4]
[324993933,1714500634386,-221.16365151,0.00031779,4]
[324993934,1714500634396,-1037.276572,0.00031779,4]
[324993935,1714500634406,-308.1215216,0.0003178,2]
[324993936,1714500634416,-500.0,0.0003178,2]
[324993937,1714500634425,-500.0,0.0003178,2]
[324993938,1714500634435,-849.38,0.0003178,2]
[324993939,1714500634444,-500.0,0.0003178,2]
[324993940,1714500634454,-500.0,0.0003178,2]
[324993941,1714500634467,-500.0,0.0003178,2]
[324993942,1714500634477,-500.0,0.0003178,2]
[324993943,1714500634486,-500.0,0.0003178,2]
[324993944,1714500634496,-500.0,0.0003178,2]
[324993945,1714500634505,-500.0,0.0003178,2]
[324993946,1714500634515,-617.16,0.0003178,2]
[324993947,1714500634524,-500.0,0.0003178,2]
[324993948,1714500634534,-500.0,0.0003178,2]
[324993949,1714500634543,-423.96961805,0.0003178,2]
[324993950,1714500634552,-500.0,0.0003178,2]
[324993951,1714500634563,-588.3938237,0.0003178,2]
[324993952,1714500634572,-500.0,0.0003178,2]
[324993953,1714500634581,-500.0,0.0003178,2]
[324993954,1714500634591,-500.0,0.0003178,2]
[324993955,1714500634603,-500.0,0.0003178,2]
[324993956,1714500634612,-500.0,0.0003178,2]
[324993957,1714500634621,-500.0,0.0003178,2]
[324993958,1714500634630,-500.0,0.0003178,2]
[324993959,1714500634639,-500.0,0.0003178,2]
[324993960,1714500634649,-500.0,0.0003178,2]
[324993961,1714500634658,-500.0,0.0003178,2]
[324993962,1714500634667,-500.0,0.0003178,2]
[324993963,1714500634676,-500.0,0.0003178,2]
[324993964,1714500634685,-483.8101321,0.0003178,2]
[324993965,1714500634695,-500.0,0.0003178,2]
[324993966,1714500634704,-500.0,0.0003178,2]
[324993967,1714500634713,-500.0,0.0003178,2]
[324993968,1714500634722,-500.0,0.0003178,2]
[324993969,1714500634731,-500.0,0.0003178,2]
[324993970,1714500634740,-500.0,0.0003178,2]
[324993971,1714500634750,-500.0,0.0003178,2]
[324993972,1714500634759,-500.0,0.0003178,2]
[324993973,1714500634768,-500.0,0.0003178,2]
[324993974,1714500634777,-500.0,0.0003178,2]
[324993975,1714500634787,-424.57212642,0.0003178,2]
[324993976,1714500634796,-500.0,0.0003178,2]
[324993977,1714500634805,-500.0,0.0003178,2]
[324993978,1714500634815,-500.0,0.0003178,2]
[324993979,1714500634825,-402.73267695,0.0003178,2]
[324993980,1714500634842,-500.0,0.0003178,2]
[324993981,1714500634855,-500.0,0.0003178,2]
[324993982,1714500634865,-500.0,0.0003178,2]
[324993983,1714500634876,-500.0,0.0003178,2]
[324993984,1714500634884,-253.48321902,0.0003178,2]
[324993985,1714500634894,-500.0,0.0003178,2]
[324993986,1714500634903,-500.0,0.0003178,2]
[324993987,1714500634912,-500.0,0.0003178,2]
[324993988,1714500634923,-500.0,0.0003178,2]
[324993989,1714500634932,-500.0,0.0003178,2]
[324993990,1714500634943,-500.0,0.0003178,2]
[324993991,1714500634952,-500.0,0.0003178,2]
[324993992,1714500634961,-500.0,0.0003178,2]
[324993993,1714500634970,-500.0,0.0003178,2]
[324993994,1714500634979,-500.0,0.0003178,2]
[324993995,1714500634988,-154.79876161,0.0003178,2]
[324993996,1714500634998,-500.0,0.0003178,2]
[324993997,1714500635007,-500.0,0.0003178,2]
[324993998,1714500635017,-500.0,0.0003178,2]
[324993999,1714500635026,-990.85,0.0003178,2]
[324994000,1714500635036,-500.0,0.0003178,2]
[324994001,1714500635045,-500.0,0.0003178,2]
[324994002,1714500635055,-500.0,0.0003178,2]
[324994003,1714500635064,-500.0,0.0003178,2]
[324994004,1714500635074,-500.0,0.0003178,2]
[324994005,1714500635083,-501.63257989,0.0003178,2]
[324994006,1714500635096,-500.0,0.0003178,2]
[324994007,1714500635105,-500.0,0.0003178,2]
[324994008,1714500635114,-590.44,0.0003178,2]
[324994009,1714500635124,-515.86957868,0.0003178,2]
[324994010,1714500635133,-500.0,0.0003178,2]
[324994011,1714500635299,-500.0,0.0003178,2]
[324994012,1714500635309,-500.0,0.0003178,2]
[324994013,1714500635318,-500.0,0.0003178,2]
[324994014,1714500635328,-500.0,0.0003178,2]
[324994015,1714500635337,-502.00246879,0.0003178,2]
[324994016,1714500635349,-500.0,0.0003178,30]
[324994017,1714500635358,-340.37131133,0.0003178,2]
[324994018,1714500635367,-500.0,0.0003178,2]
[324994019,1714500635376,-516.82043218,0.0003178,2]
[324994020,1714500635385,-522.55,0.0003178,2]
[324994021,1714500635394,-510.76687985,0.0003178,2]
[324994022,1714500635403,-500.0,0.0003178,2]
[324994023,1714500635412,-605.64755963,0.0003178,2]
[324994024,1714500635421,-500.0,0.0003178,2]
[324994025,1714500635431,-500.0,0.0003178,2]